bitfinex/quotes_ETHUSD_20250126
["timestamp","ask_amount","ask_price","bid_price","bid_amount"]
[1737852709959,3.00582,3326.9,3326.5,0.7673]
[1737852710126,0.03757603,3326.8,3326.5,0.7673]
[1737852710881,3.00582,3326.9,3326.5,0.7673]
[1737852711090,3.86112603,3326.8,3326.2,3.77371]
[1737852711245,3.86112603,3326.8,3324.6,6.17081]
[1737852711246,3.00626,3326.4,3325.9,3.7673]
[1737852712190,0.03758046,3326.3,3325.9,3.7673]
[1737852713179,3.00626,3326.4,3325.9,3.7673]
[1737852713486,3.00626,3326.4,3325.9,4.444706]
[1737852714601,3.00619,3326.5,3325.9,4.444706]
[1737852714777,0.03758046,3326.4,3325.9,7.451386]
[1737852716061,0.03758046,3326.6,3325.9,4.444706]
[1737852716268,0.03758046,3326.6,3326.0,3.0066]
[1737852716479,0.03758046,3326.6,3326.0,4.0524066]
[1737852720288,0.03758046,3326.6,3326.0,1.0458066]
[1737852720590,0.03758046,3326.6,3326.1,3.00652]
[1737852722900,3.04368046,3326.6,3325.9,6.77399]
[1737852723204,3.04368046,3326.6,3325.7,0.7673]
[1737852723205,3.00646,3326.2,3325.7,0.7673]
[1737852723358,0.03758692,3326.1,3325.6,3.0]
[1737852723557,0.03758692,3326.1,3325.5,6.0273]
[1737852723752,3.00681,3325.8,3325.2,0.7673]
[1737852724069,3.0444808,3325.7,3325.2,0.7673]
[1737852724684,3.8243,3326.0,3325.2,3.77461]
[1737852724685,3.00676,3325.9,3325.2,3.77461]
[1737852725384,3.00676,3325.9,3324.5,3.00794]
[1737852725385,0.8176,3325.6,3325.0,3.00749]
[1737852725585,0.03759184,3325.5,3325.0,3.00749]
[1737852729103,3.04466181,3325.5,3324.5,6.00791]
[1737852729396,3.00733,3325.2,3324.5,3.00791]
[1737852729638,0.03759692,3325.1,3324.5,3.00791]
[1737852730296,3.04504692,3325.1,3324.5,3.00791]
[1737852731102,3.04504692,3325.1,3324.3,3.7754]
[1737852731400,0.7868,3325.0,3324.3,3.7754]
[1737852731698,0.03759937,3324.9,3324.3,3.0081]
[1737852731902,0.03759937,3324.9,3324.2,3.00823]
[1737852732201,0.03759937,3324.9,3324.3,3.00814]
[1737852732905,0.03759937,3324.9,3324.3,6.01628]
[1737852733107,0.03759937,3324.9,3324.3,3.00814]
[1737852733826,0.03759937,3324.9,3324.5,3.00788]
[1737852734035,0.7868,3325.3,3324.7,3.00774]
[1737852734211,4.173445,3325.3,3324.7,3.00774]
[1737852734530,0.03759699,3325.2,3324.7,3.00774]
[1737852735027,0.03759699,3325.2,3324.6,0.813]
[1737852735395,0.03759699,3325.2,3324.6,3.82079]
[1737852737418,0.7868,3325.3,3324.7,3.00777]
[1737852738921,0.7868,3325.3,3324.6,0.813]
[1737852738922,0.03759697,3325.2,3324.6,0.813]
[1737852739425,3.04493697,3325.2,3324.6,0.813]
[1737852740122,3.04493697,3325.2,3324.6,3.82084]
[1737852740813,3.04493697,3325.2,3324.6,0.813]
[1737852741631,3.72882667,3325.2,3324.4,0.813]
[1737852741807,3.00761,3324.9,3324.3,3.00814]
[1737852742012,0.03759934,3324.8,3324.3,3.00814]
[1737852745735,0.7868,3324.7,3324.3,3.00814]
[1737852745935,0.7868,3324.7,3324.1,3.00833]
[1737852746108,3.04549933,3324.6,3323.9,3.0085]
[1737852746515,3.04549933,3324.6,3324.0,3.0]
[1737852747502,3.04549933,3324.6,3323.9,3.0085]
[1737852748573,0.7868,3324.7,3323.9,3.0085]
[1737852748728,0.7868,3324.7,3324.1,3.00832]
[1737852750649,3.79462,3324.7,3324.1,3.00832]
[1737852751052,0.03760424,3324.6,3324.1,3.00832]
[1737852753752,3.83549,3324.5,3323.9,3.0085]
[1737852753915,0.03760438,3324.4,3323.9,3.0085]
[1737852755847,0.03760438,3324.4,3323.7,3.82168]
[1737852756052,0.03760438,3324.4,3324.0,3.00841]
[1737852756840,0.03760438,3324.4,3323.9,3.00849]
[1737852757342,0.03760438,3324.4,3324.0,3.00841]
[1737852760237,0.8275,3324.5,3324.0,3.00841]
[1737852760238,0.86510454,3324.5,3324.0,3.00841]
[1737852760411,0.8275,3324.5,3324.0,3.00841]
[1737852760921,0.03760454,3324.4,3323.8,3.00858]
[1737852761122,3.04573454,3324.4,3323.8,3.76677599]
[1737852761364,3.04573454,3324.4,3323.8,3.00855]
[1737852766878,0.03760454,3324.4,3323.6,3.00876]
[1737852767080,0.8275,3324.5,3323.9,3.0085]
[1737852770152,0.03760638,3324.4,3323.9,3.0085]
[1737852770583,0.7556,3324.1,3323.5,0.7657]
[1737852770788,0.03760845,3324.0,3323.5,6.97214145]
[1737852771089,0.7556,3324.1,3323.7,3.00869]
[1737852774918,0.03760841,3324.2,3323.7,3.00869]
[1737852775609,0.03760841,3324.2,3323.5,0.96336145]
[1737852775807,0.03760841,3324.2,3323.5,3.00885]
[1737852776011,0.03760841,3324.2,3323.7,3.00863]
[1737852776517,0.7556,3324.3,3323.9,3.00846]
[1737852779099,0.7556,3324.3,3324.0,3.00841]
[1737852779592,0.7556,3324.7,3324.1,3.00824]
[1737852781072,0.03760422,3324.6,3324.1,3.00824]
[1737852781313,3.76346,3324.7,3324.1,3.00824]
[1737852781472,0.03760421,3324.6,3324.1,3.00824]
[1737852782512,3.04550421,3324.6,3323.9,3.00848]
[1737852782723,0.7556,3324.5,3323.9,3.00848]
[1737852784004,0.7556,3324.5,3323.6,3.00877]
[1737852784005,0.03760431,3324.4,3323.6,3.00877]
[1737852784209,3.00834,3324.1,3323.5,3.00886]
[1737852784409,0.03760837,3324.0,3323.5,3.00886]
[1737852785327,0.03760837,3324.1,3323.5,3.00886]
[1737852787056,3.80153836,3324.2,3323.6,3.00876]
[1737852787428,0.7556,3324.2,3323.5,3.00886]
[1737852787764,0.7556,3324.2,3323.7,3.00863]
[1737852789829,0.79320834,3324.2,3323.7,3.00863]
[1737852793764,3.80145834,3324.2,3323.4,3.0]
[1737852793916,3.80145834,3324.2,3323.6,3.00878]
[1737852794241,3.80145834,3324.2,3323.4,3.00895]
[1737852794242,3.82387,3324.1,3323.4,3.00895]
[1737852794447,0.03761033,3324.0,3323.4,3.00895]
[1737852794627,0.8155,3323.9,3323.4,3.00895]
[1737852794965,0.8155,3323.9,3323.2,3.79922]
[1737852794966,0.03761033,3323.8,3323.3,3.00902]
[1737852796057,0.03761033,3323.8,3323.4,3.00896]
[1737852798220,0.8155,3323.7,3323.0,6.00932]
[1737852798422,0.03761221,3323.6,3323.1,3.00915]
[1737852798849,0.03761221,3323.6,3323.0,6.6926098]
[1737852799054,0.03761221,3323.6,3323.2,3.00913]
[1737852799969,0.03761221,3323.6,3323.3,3.00899]
[1737852800267,0.8155,3323.7,3323.3,3.610812]
[1737852803890,0.8155,3323.7,3323.1,3.00923]
[1737852804356,0.85311375,3323.7,3323.1,3.00923]
[1737852804687,0.8155,3323.7,3323.2,3.00908]
[1737852804841,0.85311373,3323.7,3323.2,3.00908]
[1737852805684,0.85311373,3323.7,3323.1,3.00923]
[1737852806746,0.85311373,3323.7,3323.2,3.00912]
[1737852806971,0.85311373,3323.7,3323.3,3.00905]
[1737852807172,0.8155,3323.7,3323.3,3.00905]
[1737852810644,0.8155,3323.7,3323.4,3.00889]
[1737852816931,0.7929,3323.9,3323.4,1.389994]
[1737852817127,5.31,3324.1,3323.8,3.0086]
[1737852817280,0.7929,3324.2,3323.8,3.0086]
[1737852818178,0.7929,3324.2,3323.6,3.00872]
[1737852819521,0.7929,3324.2,3323.7,3.00869]
[1737852835469,4.18019085,3325.0,3324.1,3.00831]
[1737852835470,0.7853,3324.4,3324.1,3.00831]
[1737852835757,1.17262085,3325.4,3324.1,3.00831]
[1737852835758,0.7853,3324.8,3324.3,3.00815]
[1737852839585,0.7853,3324.8,3324.4,3.00805]
[1737852839757,5.31,3324.9,3324.6,3.00782]
[1737852840979,0.7853,3325.0,3324.6,3.00782]
[1737852844661,3.79241,3325.5,3324.7,0.7917]
[1737852844860,3.83000506,3325.5,3324.8,3.00769]
[1737852845559,3.00716,3325.4,3324.8,3.00769]
[1737852846886,3.82996506,3325.5,3324.8,3.00769]
[1737852847992,3.00716,3325.4,3324.8,3.00769]
[1737852848404,3.04483369,3325.3,3324.7,0.7917]
[1737852848685,3.00744,3325.1,3324.2,3.76813]
[1737852848894,3.00744,3325.1,3324.4,3.00799]
[1737852849588,3.00744,3325.1,3324.5,3.00796]
[1737852849789,0.8104,3325.2,3324.5,3.609569]
[1737852849993,3.81775,3325.2,3324.5,3.609569]
[1737852851685,3.00744,3325.1,3324.5,3.609569]
[1737852851902,3.04503647,3325.1,3324.3,3.00809]
[1737852852195,3.04503647,3325.1,3324.2,0.7599]
[1737852852196,0.8104,3325.0,3324.2,0.7599]
[1737852852499,3.8181,3324.8,3324.2,3.00819]
[1737852853201,3.00781,3324.7,3324.0,3.7683]
[1737852853909,0.8104,3324.5,3324.0,3.0084]
[1737852856506,0.8104,3324.5,3323.7,6.76857]
[1737852856810,3.85598389,3324.5,3323.8,4.211417]
[1737852859896,3.85598389,3324.5,3323.9,3.0085]
[1737852860901,0.84800389,3324.5,3323.9,3.0085]
[1737852861106,0.8104,3324.5,3323.9,3.0085]
[1737852861330,0.8104,3324.5,3324.1,3.00827]
[1737852861639,0.03760222,3324.4,3323.8,1.202857]
[1737852861802,0.8104,3324.3,3323.8,1.202857]
[1737852862005,0.8104,3324.3,3323.7,3.00868]
[1737852862236,0.84800629,3324.3,3323.7,3.00868]
[1737852862727,0.8104,3324.3,3323.7,3.00868]
[1737852863636,3.81878,3324.1,3323.5,3.00886]
[1737852863819,0.8104,3324.1,3323.5,3.00886]
[1737852864016,0.8104,3324.1,3323.6,3.00877]
[1737852865434,0.8104,3324.1,3323.5,1.03914826]
[1737852865619,0.8104,3324.1,3323.7,3.00869]
[1737852871004,0.03760667,3324.0,3323.5,4.04800826]
[1737852871231,0.03760667,3324.0,3323.5,3.00886]
[1737852871433,0.7812,3323.9,3323.3,3.00903]
[1737852871643,0.7812,3323.9,3322.9,0.7918]
[1737852872041,0.7812,3323.9,3323.4,3.00896]
[1737852875560,0.7812,3323.9,3323.4,3.610769]
[1737852876464,0.7812,3323.9,3323.5,3.00884]
[1737852897180,0.03761023,3323.8,3323.4,3.00893]
[1737852897490,0.7619,3323.7,3323.4,3.00893]
[1737852897697,0.7619,3323.7,3323.3,3.00904]
[1737852897915,0.03761022,3323.6,3323.2,3.00913]
[1737852898083,0.7697,3323.5,3323.2,3.00913]
[1737852903125,0.7697,3323.5,3323.0,3.00925]
[1737852903287,0.7697,3323.5,3323.1,3.00922]
[1737852903724,0.7697,3323.5,3322.8,0.6023723]
[1737852903892,0.03761258,3323.4,3322.9,3.00936]
[1737852904086,0.7697,3323.3,3322.9,3.00936]
[1737852904400,0.7697,3323.1,3322.7,3.0]
[1737852904633,0.7697,3323.1,3322.7,6.00959]
[1737852905309,0.80731806,3323.1,3322.7,6.00959]
[1737852905635,0.80731806,3323.1,3322.7,3.0]
[1737852905820,0.80731806,3323.1,3322.5,3.00977]
[1737852906564,1.48988087,3323.1,3322.4,0.58694873]
[1737852906710,3.01023,3322.0,3321.3,3.40027668]
[1737852906910,1.17262085,3322.6,3321.3,3.40027668]
[1737852906911,0.7697,3321.8,3321.3,0.38942668]
[1737852907150,0.7697,3321.8,3321.3,3.40028668]
[1737852907350,0.7697,3321.8,3321.4,0.41913867]
[1737852907651,0.7697,3321.8,3321.3,0.38942668]
[1737852907862,3.01052,3321.7,3321.3,0.38942668]
[1737852908364,0.037635,3321.6,3321.0,3.01113]
[1737852908511,3.048295,3321.6,3320.8,6.16682617]
[1737852908709,3.76668,3321.5,3320.9,3.0]
[1737852909137,0.756,3321.5,3320.9,3.0112]
[1737852909521,0.756,3321.5,3320.9,6.0112]
[1737852909726,0.756,3321.5,3320.9,3.0]
[1737852909939,0.756,3321.5,3321.0,3.01113]
[1737852911152,0.756,3321.5,3320.5,3.01158]
[1737852911153,0.756,3321.1,3320.5,3.01158]
[1737852911354,0.79364289,3321.1,3320.5,3.01158]
[1737852914654,0.756,3321.1,3319.9,3.7687]
[1737852914971,0.756,3321.1,3321.0,3.01114]
[1737852915759,0.756,3321.8,3321.1,3.01102]
[1737852916062,0.756,3321.8,3321.3,3.01084]
[1737852916844,0.756,3321.8,3321.4,3.0107]
[1737852921662,0.756,3321.8,3321.2,3.01095]
[1737852921851,0.756,3321.8,3321.5,3.01067]
[1737852922542,0.79363258,3321.8,3321.3,3.01081]
[1737852930281,3.80411258,3321.8,3321.0,3.01112]
[1737852930446,3.01054,3321.7,3321.0,3.01112]
[1737852930643,0.03763518,3321.6,3321.0,3.01112]
[1737852932370,0.03763518,3321.6,3320.6,3.01149]
[1737852932371,3.82887,3321.2,3320.6,3.01149]
[1737852932529,3.82887,3321.2,3320.4,5.26]
[1737852932530,3.82887,3321.2,3320.4,8.27167]
[1737852932731,3.04871207,3321.1,3320.4,3.01167]
[1737852933074,0.8179,3321.0,3320.4,3.01167]
[1737852935175,0.8179,3321.0,3320.5,3.01159]
[1737852937481,0.8179,3321.0,3320.3,3.01177]
[1737852937684,0.8179,3321.0,3320.6,3.01149]
[1737852938556,0.8179,3321.0,3320.7,3.01134]
[1737852945153,0.03764201,3321.3,3320.7,3.01138]
[1737852945754,0.03764201,3321.3,3320.3,0.381197]
[1737852945958,0.03764201,3321.3,3320.6,3.01141]
[1737852946288,0.03764201,3321.3,3320.6,3.01142]
[1737852946489,0.03764201,3321.3,3320.6,6.02284]
[1737852946689,0.03764201,3321.3,3320.8,3.01125]
[1737852946900,0.8179,3321.5,3321.1,3.01096]
[1737852947104,0.8179,3321.8,3321.4,3.01071]
[1737852947404,0.8179,3321.8,3321.5,3.01066]
[1737852947814,0.8179,3321.8,3321.4,3.01071]
[1737852951287,3.0102,3322.1,3321.2,3.81115]
[1737852951288,0.8256,3322.1,3321.2,0.8002]
[1737852951495,0.8256,3322.1,3321.7,3.0105]
[1737852952825,0.8256,3322.1,3321.8,3.01039]
[1737852953321,0.8256,3322.1,3321.6,3.01057]
[1737852953711,1.209162,3322.1,3321.6,3.01057]
[1737852955477,1.209162,3322.1,3321.3,3.0108]
[1737852955715,0.03762909,3322.0,3321.4,3.01075]
[1737852956618,0.03762909,3322.0,3321.5,3.01068]
[1737852957323,1.24679357,3322.1,3321.5,3.01068]
[1737852957835,1.209162,3322.1,3321.6,3.01058]
[1737852957998,0.8256,3322.1,3321.7,3.0105]
[1737852961028,0.8256,3322.1,3321.5,3.01068]
[1737852961029,0.8256,3322.1,3321.8,3.01039]
[1737852961213,0.03762914,3322.0,3321.6,3.01053]
[1737852961919,0.03762914,3322.0,3321.3,3.01085]
[1737852962132,0.8256,3321.9,3321.4,3.01073]
[1737852962429,0.8256,3321.9,3321.3,3.01085]
[1737852962645,0.8256,3321.7,3321.3,3.01085]
[1737852963217,0.8256,3321.5,3321.1,3.01098]
[1737852963573,0.8256,3321.5,3321.2,3.01095]
[1737852964182,0.8256,3321.5,3321.0,3.01105]
[1737852965273,0.8256,3321.5,3320.8,3.613567]
[1737852965577,0.8256,3321.5,3321.1,3.01104]
[1737852966142,0.03763627,3321.4,3320.9,3.01122]
[1737852966341,0.8256,3321.5,3320.9,3.01116]
[1737852966549,0.8256,3321.5,3321.0,3.01114]
[1737852967842,0.8256,3321.5,3321.1,3.01099]
[1737852969994,0.8256,3321.5,3320.9,3.0112]
[1737852970142,0.03763861,3321.4,3320.9,3.0112]
[1737852970683,0.8286,3321.5,3320.9,3.0112]
[1737852970836,0.03763912,3321.4,3320.9,3.0112]
[1737852971033,0.8286,3321.3,3320.8,3.0113]
[1737852971290,0.8286,3321.3,3321.0,3.01113]
[1737852972857,0.8286,3321.0,3320.4,3.01165]
[1737852973061,0.42161532,3320.9,3320.4,3.01165]
[1737852973259,0.03764432,3320.9,3320.4,3.01165]
[1737852974212,0.8662443,3321.0,3320.5,3.01158]
[1737852975266,0.8286,3321.0,3320.2,0.7938]
[1737852975509,0.8286,3321.0,3320.7,3.01136]
[1737852976675,0.8286,3321.0,3320.7,3.01133]
[1737852977091,0.8286,3321.0,3320.8,3.01131]
[1737852978301,0.8286,3321.0,3320.6,3.0115]
[1737852979103,0.8286,3321.0,3320.7,3.01138]
[1737852982017,0.8286,3321.0,3320.6,3.0115]
[1737852982186,0.03764276,3320.9,3320.6,3.0115]
[1737852982924,0.8286,3320.9,3320.3,3.01169]
[1737852983223,0.8286,3320.9,3320.4,3.01161]
[1737852984016,0.8286,3320.9,3320.5,3.01159]
[1737852985616,0.03764416,3320.8,3320.2,3.01186]
[1737852985819,0.03764416,3320.8,3320.3,3.01175]
[1737852985820,0.8286,3320.7,3320.3,3.01175]
[1737852986121,0.03764574,3320.6,3320.3,3.01175]
[1737852987509,3.8402,3320.5,3319.8,6.02431]
[1737852987714,0.03765116,3320.4,3319.8,3.01215]
[1737852988123,4.67162803,3320.5,3319.8,3.01215]
[1737852988124,0.8286,3320.5,3320.0,3.01202]
[1737852988314,0.86625036,3320.5,3320.0,3.01202]
[1737852989072,0.8286,3320.5,3320.1,3.01194]
[1737852992949,0.8286,3320.5,3320.2,3.01185]
[1737852993328,0.8286,3320.5,3320.3,3.01176]
[1737852994467,5.31,3320.6,3320.5,3.01159]
[1737852998459,0.8038,3320.8,3320.5,3.01159]
[1737852999561,0.8038,3320.8,3320.6,3.01142]
[1737853000239,5.31,3321.3,3320.6,3.01142]
[1737853000560,0.8038,3321.2,3320.6,3.01142]
[1737853001068,0.8414423,3321.2,3320.6,3.01142]
[1737853001647,4.76863553,3321.2,3320.6,3.01142]
[1737853001845,0.8038,3321.1,3320.6,3.01142]
[1737853002017,0.0376423,3321.0,3320.6,3.01142]
[1737853002218,0.8038,3321.1,3320.6,3.01142]
[1737853002417,0.0376423,3321.0,3320.6,3.01142]
[1737853005030,0.8038,3321.1,3320.6,3.01142]
[1737853006677,0.8038,3321.1,3320.4,3.01166]
[1737853006880,0.8038,3321.1,3320.5,3.01156]
[1737853007178,0.8038,3321.1,3320.4,3.01166]
[1737853007563,0.8038,3321.1,3320.5,3.01158]
[1737853008735,3.81485,3321.1,3320.5,3.01158]
[1737853009380,0.8038,3321.1,3320.6,3.01142]
[1737853013917,0.8038,3321.1,3320.7,0.7721]
[1737853019337,0.8038,3321.1,3320.6,3.01142]
[1737853022094,3.01152,3320.6,3320.0,3.01204]
[1737853022298,0.7953,3320.5,3319.9,3.01212]
[1737853023081,3.04933724,3320.4,3319.8,3.58773052]
[1737853023480,3.04933724,3320.4,3319.8,0.58773052]
[1737853024234,3.01169,3320.4,3319.8,3.59995052]
[1737853024998,0.7953,3320.5,3319.8,3.59995052]
[1737853025498,3.8069,3320.5,3319.8,3.59995052]
[1737853026608,0.7953,3320.4,3319.8,3.59995052]
[1737853027646,0.7953,3320.4,3319.9,3.01211]
[1737853029146,0.7953,3320.4,3320.0,3.01201]
[1737853034919,0.03764908,3320.3,3320.0,3.01201]
[1737853035136,0.7953,3320.4,3320.0,3.01201]
[1737853035429,0.0376491,3320.3,3320.0,3.01201]
[1737853035652,0.8025,3320.2,3320.0,3.01201]
[1737853037646,0.8025,3320.2,3320.1,3.01195]
[1737853037845,0.8025,3320.2,3320.0,3.614433]
[1737853038583,0.8025,3320.2,3320.0,3.01201]
[1737853039893,0.8258,3320.6,3320.0,3.01201]
[1737853042251,0.8258,3320.6,3320.1,3.01188]
[1737853042449,0.8258,3320.6,3319.9,3.01213]
[1737853042666,0.8258,3320.9,3320.5,3.01159]
[1737853043069,5.31,3321.0,3320.7,3.01137]
[1737853043292,0.8258,3321.1,3320.7,3.01137]
[1737853044407,0.8258,3321.1,3321.0,3.01114]
[1737853044676,0.8258,3321.4,3321.0,3.01114]
[1737853047248,5.31,3321.5,3321.0,3.01114]
[1737853047400,5.31,3321.5,3321.3,3.01084]
[1737853048016,0.8258,3321.7,3321.3,3.01084]
[1737853048241,0.8258,3321.7,3321.1,3.01099]
[1737853048398,0.0376349,3321.6,3321.1,3.01099]
[1737853049245,0.8258,3321.7,3321.2,3.01093]
[1737853053027,0.8258,3321.7,3321.4,3.01077]
[1737853053453,0.8258,3321.7,3321.2,3.01093]
[1737853054484,0.78,3321.5,3320.8,3.01131]
[1737853054774,3.82838845,3321.5,3320.8,3.01124]
[1737853055265,3.82838845,3321.5,3320.9,3.0112]
[1737853055781,3.79075,3321.5,3320.9,3.0112]
[1737853056633,0.81763844,3321.4,3320.7,3.0]
[1737853056877,0.81763844,3321.4,3320.7,6.01135]
[1737853057393,3.79088,3321.3,3320.7,3.01135]
[1737853057689,0.03764081,3321.2,3320.7,3.01135]
[1737853060291,0.7997,3321.1,3320.5,3.01153]
[1737853060590,0.03764098,3321.0,3320.5,3.01153]
[1737853061352,0.7997,3321.1,3320.7,3.0114]
[1737853061863,0.7997,3320.9,3320.7,3.0114]
[1737853063285,0.7997,3320.9,3320.8,3.01132]
[1737853064766,0.7997,3321.3,3320.8,3.01132]
[1737853068094,0.03764069,3321.2,3320.8,3.01132]
[1737853070111,1.22215374,3321.3,3320.8,3.01132]
[1737853070313,1.18451307,3321.3,3320.8,3.01132]
[1737853070603,0.7997,3321.3,3320.8,3.01132]
[1737853078815,0.03764056,3321.2,3320.8,3.01132]
[1737853080418,0.83734055,3321.3,3320.8,3.01132]
[1737853085991,3.84824055,3321.3,3320.6,3.01149]
[1737853086185,0.83734055,3321.3,3320.7,3.01139]
[1737853087064,3.84821055,3321.3,3320.7,3.01139]
[1737853089400,4.23303161,3321.3,3320.7,3.01139]
[1737853090861,0.83734055,3321.3,3320.8,3.01132]
[1737853091090,0.7997,3321.3,3320.8,3.84022]
[1737853092799,3.81058,3321.3,3320.6,3.84039]
[1737853093000,3.81058,3321.3,3320.7,3.0114]
[1737853096225,3.81058,3321.3,3320.6,3.84039]
[1737853097438,3.81058,3321.3,3320.7,3.01139]
[1737853105722,3.01074,3321.5,3320.9,3.01114]
[1737853105929,5.31,3321.6,3320.9,0.8289]
[1737853106240,5.31,3321.6,3321.3,3.01085]
[1737853106440,3.77888,3321.9,3321.3,3.01085]
[1737853107635,0.7685,3321.9,3321.4,3.01077]
[1737853109339,0.7685,3321.9,3321.0,0.8289]
[1737853109340,3.04805205,3321.8,3321.2,3.01093]
[1737853109575,3.73073326,3321.8,3321.2,3.01093]
[1737853110780,0.7974,3321.6,3321.0,3.84002]
[1737853110953,0.03763614,3321.5,3321.0,3.01112]
[1737853111150,0.03763614,3321.5,3320.8,3.0113]
[1737853111648,3.01078,3321.4,3320.8,3.0113]
[1737853116883,0.7974,3321.3,3320.8,3.0113]
[1737853120319,0.8350386,3321.3,3320.8,3.0113]
[1737853122180,0.7974,3321.3,3320.8,3.0113]
[1737853122411,0.7974,3321.3,3320.9,3.01118]
[1737853123212,0.7974,3321.3,3320.8,3.0113]
[1737853123413,0.7974,3321.7,3321.2,3.01087]
[1737853124118,0.7974,3321.7,3321.4,3.01077]
[1737853129853,0.7974,3321.7,3321.2,3.01087]
[1737853131430,0.75,3321.5,3321.0,3.01112]
[1737853131942,3.7607,3321.5,3320.8,3.0113]
[1737853132144,3.7607,3321.5,3320.9,3.01117]
[1737853135129,0.03763755,3321.4,3320.8,0.679419]
[1737853135572,0.8074,3321.3,3320.8,3.690719]
[1737853136383,0.03763822,3321.2,3320.8,0.679419]
[1737853136541,0.8074,3321.3,3320.7,6.01135]
[1737853136879,0.8074,3321.3,3320.8,3.01131]
[1737853137352,0.8074,3321.3,3320.9,3.01122]
[1737853137692,3.0107,3321.5,3320.9,3.81012]
[1737853137871,0.8074,3321.6,3320.9,1.481052]
[1737853138184,0.8074,3321.8,3321.3,3.01084]
[1737853139745,0.03763325,3321.7,3321.1,3.01102]
[1737853140270,0.8074,3321.6,3321.1,3.01102]
[1737853141273,0.8074,3321.6,3321.2,3.01095]
[1737853150586,0.03763326,3321.5,3320.9,3.01123]
[1737853150794,0.8004,3321.4,3320.7,6.01136]
[1737853151084,3.81119,3321.4,3320.9,3.0]
[1737853153856,0.8004,3321.4,3320.9,3.01122]
[1737853158469,0.83803764,3321.4,3320.9,3.01122]
[1737853159005,0.8004,3321.4,3320.9,3.01122]
[1737853160213,0.03763763,3321.3,3320.9,3.01122]
[1737853160371,0.8004,3321.4,3320.9,3.01122]
[1737853160578,0.03763817,3321.3,3320.9,3.01122]
[1737853160777,0.83803898,3321.4,3320.9,3.01122]
[1737853161479,0.8004,3321.4,3320.9,3.01122]
[1737853162208,0.8004,3321.4,3320.7,3.01139]
[1737853162519,0.8004,3321.4,3321.1,3.01104]
[1737853163614,0.8004,3321.4,3321.2,3.01093]
[1737853164527,0.8004,3321.4,3321.1,3.01098]
[1737853164803,0.8004,3321.4,3321.2,3.01095]
[1737853165627,8.32032,3321.9,3321.2,3.01095]
[1737853165770,1.69436697,3321.8,3321.2,3.01095]
[1737853165969,0.86233497,3321.8,3321.2,3.01095]
[1737853166217,0.86233497,3321.8,3321.0,3.78152]
[1737853166402,3.87274497,3321.8,3321.1,3.01097]
[1737853167793,3.83511,3321.8,3321.2,3.01089]
[1737853167999,0.8247,3321.8,3321.4,3.01077]
[1737853171001,0.8247,3321.8,3321.2,3.01089]
[1737853171208,0.03763327,3321.7,3321.2,3.01089]
[1737853171716,0.8247,3321.8,3321.3,3.01086]
[1737853174596,0.8247,3321.8,3321.5,3.01067]
[1737853178342,0.8247,3321.8,3321.3,3.311946]
[1737853178494,0.8247,3321.8,3321.3,3.01086]
[1737853184426,0.86233234,3321.8,3321.3,3.01086]
[1737853184722,3.83517,3321.8,3321.1,3.01102]
[1737853184923,0.8098,3321.7,3320.9,3.01123]
[1737853185109,0.8098,3321.5,3320.9,3.01123]
[1737853186440,3.82051,3321.5,3320.9,3.01123]
[1737853188940,0.8098,3321.5,3321.0,3.01112]
[1737853190440,0.03763653,3321.4,3321.0,3.01112]
[1737853191545,0.8035,3321.3,3320.7,3.01135]
[1737853191718,0.8035,3321.3,3320.8,3.01131]
[1737853194350,0.8035,3321.3,3320.5,3.01159]
[1737853194538,0.8035,3321.1,3320.5,3.01159]
[1737853194738,0.03764017,3321.0,3320.3,3.01176]
[1737853194940,0.8035,3320.8,3319.8,3.76462]
[1737853195155,0.84114868,3320.7,3319.9,0.96259363]
[1737853195463,0.84114868,3320.7,3320.1,3.01195]
[1737853196955,0.8035,3320.7,3320.1,3.01195]
[1737853198420,3.81493,3320.7,3320.1,3.01195]
[1737853201377,0.03764747,3320.6,3320.1,3.01195]
[1737853202175,3.85257746,3320.7,3320.1,3.01195]
[1737853203180,0.7543,3320.6,3320.1,3.01195]
[1737853203341,0.7543,3320.4,3319.9,3.01211]
[1737853203541,0.7543,3320.2,3319.7,3.0123]
[1737853203745,0.7543,3320.2,3319.7,3.614778]
[1737853204298,0.03765065,3320.1,3319.7,3.614778]
[1737853204892,0.7543,3320.2,3319.7,3.614778]
[1737853207302,0.7543,3320.2,3319.7,3.0123]
[1737853208494,0.7543,3320.2,3319.5,3.01248]
[1737853208701,0.7543,3320.2,3319.6,3.01232]
[1737853209606,0.7543,3320.2,3319.5,3.01248]
[1737853209758,0.7543,3320.2,3319.7,3.01228]
[1737853210908,0.8195,3320.0,3319.3,3.01264]
[1737853211088,0.38037318,3320.2,3319.2,3.01269]
[1737853211089,0.8195,3319.8,3319.2,3.01269]
[1737853211260,0.85715502,3319.8,3319.2,3.01269]
[1737853211461,0.8195,3319.8,3319.4,3.01258]
[1737853214512,0.8195,3319.8,3318.9,5.87157362]
[1737853214513,0.8195,3319.6,3318.9,3.01296]
[1737853215267,0.8195,3319.6,3319.0,3.01291]
[1737853215697,1.73369,3319.6,3318.9,3.01296]
[1737853215892,0.8195,3319.4,3318.9,3.01296]
[1737853216063,0.8195,3319.4,3318.7,3.01318]
[1737853216270,0.8195,3319.4,3318.8,3.01309]
[1737853218403,0.8195,3319.4,3318.9,3.01303]
[1737853220375,0.8195,3319.4,3318.6,1.23818059]
[1737853220376,0.8195,3319.4,3319.0,3.01292]
[1737853220575,0.7563,3319.7,3319.0,0.301292]
[1737853220776,0.7563,3319.7,3319.4,3.01252]
[1737853221088,0.7563,3319.7,3319.5,3.0125]
[1737853221800,0.7563,3319.7,3319.3,3.01261]